[Event "1000GM Schev-G2 March 2024"]
[Site "Santa Clara"]
[Date "2024.03.10"]
[Round "5.4"]
[White "Iinuma, Paul Y"]
[Black "Garcia Guerrero, Isaac Antonio"]
[Result "1/2-1/2"]
[ECO "B45"]
[WhiteElo "2141"]
[BlackElo "2300"]
[Annotator "TA"]
[PlyCount "41"]
[EventDate "2024.03.06"]
[EventType "schev"]
[EventCountry "USA"]
[SourceTitle "playchess.com"]
[Source "ChessBase"]
[SourceQuality "1"]
[TimeControl "5400+30"]

{[%evp 27,41,0,0,0,5,-2,19,17,47,58,59,30,1,-7,-7,-10]} 1. e4 {[%emt 0:00:02]} c5 {[%emt 0:00:34]} 2. Nf3 {[%emt 0:00:02]} e6 {[%emt 0:00:23]} 3. d4 {[%emt 0:00:09]} cxd4 {[%emt 0:00:15]} 4. Nxd4 {[%emt 0:00:02]} Nf6 {[%emt 0:00:14]} 5. Nc3 {[%emt 0:00:04]} Nc6 {[%emt 0:00:08]} 6. Nxc6 {[%emt 0:00:04]} bxc6 {[%emt 0:00:13]} 7. e5 {[%emt 0:00:05]} Nd5 {[%emt 0:00:12]} 8. Ne4 {[%emt 0:00:01]} Qc7 {[%emt 0:00:28]} 9. f4 {[%emt 0:00:49]} Qb6 {[%emt 0:00:26]} 10. c4 {[%emt 0:00:07]} Bb4+ {[%emt 0:01:04]} 11. Ke2 {[%emt 0:01:43]} f5 {[%emt 0:00:44]} 12. Nf2 {[%emt 0:00:06]} Ba6 {[%emt 0:01:26]} 13. Kf3 {[%emt 0:00:06]} Ne7 {[%emt 0:00:30]} 14. Be3 {[%emt 0:00:02]} Bc5 $1 {[%emt 0:00:14]} 15. Bxc5 {[%emt 0:00:01]} Qxc5 {[%emt 0:00:10]} 16. Qd6 {[%emt 0:00:02]} Qb6 {[%emt 0:02:53]} 17. Be2 {[%emt 0:00:01]} c5 {[%emt 0:03:49][%cal Og7g5]} ({Much weaker is} 17... Qxb2 18. Nd3 Qb8 (18... Bxc4 $2 {is the wrong capture.} 19. Nxb2 Bd5+ 20. Kf2 $18) 19. Qd4 $16) 18. Rhd1 {[%emt 0:06:38]} Rd8 {[%emt 0:06:07]} 19. Qxb6 {[%emt 0:05:22]} axb6 {[%emt 0:00:09]} 20. h4 {[%emt 0:00:08]} Nc6 {[%emt 0:01:30] aiming for ...Nd4+.} 21. Rac1 {[%emt 0:10:56] Weighted Error Value: White=0.09 (flawless) /Black=0.11 (very precise) .  Inaccurate:     	White=1     	Black=1      OK:         	White=2     	Black=2} 1/2-1/2

[Event "1000GM Schev-G2 March 2024"]
[Site "Santa Clara"]
[Date "2024.03.11"]
[Round "5.5"]
[White "Zhou, Ruoyu"]
[Black "Stopa, Jacek"]
[Result "1/2-1/2"]
[ECO "B32"]
[WhiteElo "2168"]
[BlackElo "2335"]
[Annotator "TA"]
[PlyCount "39"]
[EventDate "2024.03.06"]
[EventType "schev"]
[EventCountry "USA"]
[SourceTitle "playchess.com"]
[Source "ChessBase"]
[SourceQuality "1"]
[TimeControl "5400+30"]

{[%evp 18,39,85,56,131,112,126,116,109,111,106,99,124,49,109,95,108,19,33,32,27,25,30,29]} 1. e4 {[%emt 0:01:49]} c5 {[%emt 0:00:06]} 2. Nf3 {[%emt 0:00:16]} Nc6 {[%emt 0:00:05]} 3. d4 {[%emt 0:00:10]} cxd4 {[%emt 0:00:06]} 4. Nxd4 {[%emt 0:00:11]} e5 {[%emt 0:00:15]} 5. Nb5 {[%emt 0:00:08]} a6 {[%emt 0:00:05]} 6. Nd6+ {[%emt 0:00:28]} Bxd6 {[%emt 0:00:07]} 7. Qxd6 {[%emt 0:00:11]} Qf6 {[%emt 0:00:03]} 8. Qd1 {[%emt 0:01:47]} Qg6 {[%emt 0:00:07]} 9. Nc3 {[%emt 0:03:46]} Nf6 {[%emt 0:11:25]} 10. Qd6 {[%emt 0:16:42] Black must now prevent Be3.} b5 {[%emt 0:00:07]} (10... Ng4 $14 11. Qxg6 hxg6) 11. Be3 {[%emt 0:05:02]} b4 {[%emt 0:04:31] [#]} 12. Nd5 {[%emt 0:02:21] White has more active pieces. The black rooks are passive.} Nxd5 {[%emt 0:00:07] White is better.} 13. Qxd5 {[%emt 0:11:31]} O-O {[%emt 0:00:08]} 14. O-O-O {[%emt 0:00:53]} a5 {[%emt 0:00:33]} 15. Bc4 {[%emt 0:07:25]} (15. f3 $16) 15... a4 {[%emt 0:01:36]} (15... Ba6 $1 $14) 16. Bc5 $16 {[%emt 0:05:02]} Re8 {[%emt 0:05:06]} 17. Bxb4 {[%emt 0:05:42] A strong pair of Bishops.} (17. h4 $16) 17... Ba6 $1 $11 {[%emt 0:06:33]} 18. Bc5 {[%emt 0:02:29] And now Bxa6 would win.} ({Don't go for} 18. Bxa6 $2 Nxb4 19. Qd2 Nxa6 $19 (19... Nxa2+ $2 20. Kb1 $19)) 18... Bxc4 {[%emt 0:01:21]} 19. Qxc4 {[%emt 0:00:04]} Qxg2 {[%emt 0:02:02]} 20. Qd3 {[%emt 0:04:15] Weighted Error Value: White=0.25 (precise) /Black=0.17 (very precise) .  Mistake:       	White=2     	Black=1      OK:         	White=5     	Black=7      Strong:       	---       	Black=1} 1/2-1/2